bitfinex/quotes_ETHUSD_20241006
["timestamp","ask_amount","ask_price","bid_price","bid_amount"]
[1728231459249,3.26878,2447.4,2446.9,0.8137]
[1728231459592,7.34019,2447.6,2446.9,4.08313]
[1728231459884,3.26867,2447.5,2447.0,0.735267]
[1728231460576,3.26857,2447.6,2447.1,0.8137]
[1728231460795,6.53718,2447.6,2447.1,0.8137]
[1728231461391,3.26857,2447.6,2447.1,0.8137]
[1728231461557,10.71801,2448.0,2447.2,4.08266]
[1728231461558,3.26832,2447.8,2447.2,4.08266]
[1728231461887,3.26832,2447.8,2447.3,0.8137]
[1728231462039,6.53664,2447.8,2447.3,0.8137]
[1728231462242,6.53668,2447.8,2447.3,0.8137]
[1728231462458,3.26832,2447.8,2447.3,0.8137]
[1728231462656,3.2684,2447.7,2447.3,0.8137]
[1728231462860,3.26832,2447.8,2447.4,0.408266]
[1728231463056,6.53664,2447.8,2447.4,0.408266]
[1728231463300,3.26832,2447.8,2447.4,0.408266]
[1728231466865,3.26805,2448.0,2447.5,0.7903]
[1728231467067,3.26805,2448.0,2447.6,0.8720109]
[1728231467273,3.26805,2448.0,2447.7,0.41405609]
[1728231468204,3.26805,2448.0,2447.8,0.7903]
[1728231468501,3.26777,2448.2,2447.8,0.7903]
[1728231468502,3.26792,2448.1,2447.8,0.7903]
[1728231469926,3.26777,2448.2,2447.8,0.7903]
[1728231470229,3.26777,2448.2,2447.8,1.23758461]
[1728231471121,3.26777,2448.2,2447.8,0.7903]
[1728231474717,3.26785,2448.1,2447.8,0.7903]
[1728231476530,3.26805,2448.0,2447.8,0.7903]
[1728231476833,3.2681,2447.9,2447.8,0.7903]
[1728231477207,3.26763,2448.3,2447.1,3.26905]
[1728231477208,3.2685,2447.6,2447.5,0.7903]
[1728231477844,3.2685,2447.6,2447.1,0.7903]
[1728231478140,3.26864,2447.5,2447.2,1.14496]
[1728231478342,3.26864,2447.5,2447.1,0.7903]
[1728231479037,3.26878,2447.4,2447.1,0.7903]
[1728231479539,3.26864,2447.5,2447.1,0.7903]
[1728231481740,3.2682,2447.9,2447.2,0.7903]
[1728231481957,3.2682,2447.9,2447.4,0.7903]
[1728231481958,3.26817,2447.9,2447.4,0.7903]
[1728231482117,3.26817,2447.9,2447.5,0.7903]
[1728231482316,3.2679,2448.1,2447.5,3.26862]
[1728231482545,3.2679,2448.1,2447.6,0.7903]
[1728231482858,3.2679,2448.1,2447.7,0.732741]
[1728231483653,6.53582,2448.1,2447.7,0.732741]
[1728231483836,3.268,2448.0,2447.7,0.732741]
[1728231484246,3.2679,2448.1,2447.7,0.732741]
[1728231484751,6.53583,2448.1,2447.7,0.732741]
[1728231484966,3.2679,2448.1,2447.7,0.732741]
[1728231486174,3.2679,2448.1,2447.8,0.8319]
[1728231486363,3.2679,2448.1,2447.8,1.3152131]
[1728231486530,3.26764,2448.3,2447.9,0.8319]
[1728231487456,2.38317666,2448.4,2448.0,0.8319]
[1728231487845,5.65061666,2448.4,2448.0,0.8319]
[1728231488469,2.38317666,2448.4,2448.0,0.8319]
[1728231488705,2.38317666,2448.4,2448.1,0.40999]
[1728231489764,5.65069666,2448.4,2448.1,0.40999]
[1728231489969,5.65069666,2448.4,2448.0,0.8319]
[1728231489970,3.26758,2448.3,2448.0,0.8319]
[1728231490569,5.65063666,2448.4,2448.0,0.8319]
[1728231491960,2.38317666,2448.4,2448.0,0.8319]
[1728231492474,3.2674,2448.5,2448.0,0.8319]
[1728231493439,3.2674,2448.5,2448.0,4.09985]
[1728231493643,3.2674,2448.5,2448.1,0.736788]
[1728231494076,6.53424,2448.7,2448.2,0.8319]
[1728231494377,3.37794744,2448.8,2448.2,0.8319]
[1728231494578,3.26739,2448.5,2448.2,0.8319]
[1728231494989,3.26777,2448.2,2447.9,0.8319]
[1728231495142,3.26772,2448.2,2447.9,0.8319]
[1728231495342,3.26784,2448.1,2447.9,0.8319]
[1728231495773,6.53526,2448.3,2447.9,0.8319]
[1728231495977,3.26774,2448.2,2447.9,0.8319]
[1728231496379,3.26757,2448.3,2447.9,0.8319]
[1728231496780,6.53527,2448.3,2447.9,0.8319]
[1728231497079,3.26757,2448.3,2447.9,0.8319]
[1728231499992,3.2677,2448.2,2447.9,0.8319]
[1728231500162,3.26757,2448.3,2447.9,1.241919]
[1728231501254,3.26773,2448.2,2447.9,1.241919]
[1728231501377,3.26757,2448.3,2447.9,1.241919]
[1728231501764,6.53522,2448.3,2447.9,1.241919]
[1728231502701,3.26775,2448.2,2447.9,1.241919]
[1728231503679,3.26757,2448.3,2447.9,0.8319]
[1728231504934,3.26785,2448.1,2447.9,0.8319]
[1728231505285,3.26765,2448.3,2447.9,0.8319]
[1728231505486,6.5353,2448.3,2447.9,0.8319]
[1728231505791,3.26765,2448.3,2447.9,0.8319]
[1728231506088,6.53475,2448.5,2447.9,4.92638812]
[1728231506291,3.26732,2448.5,2448.0,0.7551]
[1728231506531,3.26744,2448.4,2448.0,0.7551]
[1728231509496,3.26766,2448.3,2448.0,0.7551]
[1728231509930,3.2677,2448.2,2448.0,0.7551]
[1728231510240,6.53498,2448.4,2448.0,0.7551]
[1728231510408,3.26744,2448.4,2448.0,0.7551]
[1728231510603,3.26732,2448.5,2448.1,0.47681695]
[1728231511801,3.26725,2448.6,2448.2,0.7551]
[1728231512007,3.26724,2448.6,2448.2,0.7551]
[1728231512734,3.26699,2448.8,2448.2,0.7551]
[1728231512945,3.26699,2448.8,2448.3,0.7551]
[1728231513143,3.26699,2448.8,2448.4,0.402268]
[1728231513295,6.53399,2448.8,2448.4,0.402268]
[1728231513812,3.26699,2448.8,2448.4,0.402268]
[1728231514150,3.26718,2448.6,2448.3,0.7551]
[1728231514441,3.26743,2448.4,2448.1,0.7551]
[1728231514744,3.2677,2448.2,2448.1,0.7551]
[1728231515208,3.26747,2448.4,2448.1,0.7551]
[1728231516810,3.26757,2448.3,2448.1,0.7551]
[1728231517405,6.53502,2448.4,2448.1,0.7551]
[1728231518347,3.26747,2448.4,2448.1,0.7551]
[1728231518506,3.26764,2448.3,2448.1,0.7551]
[1728231519957,3.26747,2448.4,2448.1,0.7551]
[1728231520324,3.26757,2448.3,2448.1,0.7551]
[1728231520527,6.53503,2448.4,2448.1,0.7551]
[1728231520758,3.26747,2448.4,2448.1,0.7551]
[1728231521059,3.2676,2448.3,2448.1,0.7551]
[1728231524838,3.26773,2448.2,2447.9,0.8312]
[1728231525041,6.53503,2448.4,2447.9,0.8312]
[1728231525466,3.26759,2448.3,2447.9,0.8312]
[1728231525627,3.26759,2448.3,2447.9,1.241142]
[1728231526031,3.26771,2448.2,2447.9,0.8312]
[1728231526397,3.26753,2448.4,2447.9,0.8312]
[1728231526398,3.26761,2448.3,2447.9,0.8312]
[1728231528559,3.2678,2448.2,2447.9,0.8312]
[1728231529695,3.26761,2448.3,2447.9,0.8312]
[1728231530008,6.53526,2448.3,2447.9,0.8312]
[1728231530301,3.26761,2448.3,2447.9,0.8312]
[1728231530488,6.53527,2448.3,2447.9,0.8312]
[1728231530863,6.53525,2448.3,2447.9,0.8312]
[1728231533416,3.26784,2448.1,2447.9,0.8312]
[1728231536008,6.53531,2448.3,2447.9,0.8312]
[1728231536360,3.26761,2448.3,2447.9,0.8312]
[1728231536566,3.26773,2448.2,2447.9,0.8312]
[1728231538508,3.26791,2448.1,2447.9,0.8312]
[1728231538822,3.26811,2447.9,2447.7,0.8312]
[1728231539110,3.26799,2448.0,2447.7,0.8312]
[1728231539719,3.26831,2447.8,2447.5,0.8312]
[1728231539898,6.53663,2447.8,2447.5,0.8312]
[1728231540202,3.26831,2447.8,2447.5,0.8312]
[1728231540870,6.53663,2447.8,2447.5,0.8312]
[1728231541071,3.26831,2447.8,2447.5,0.8312]
[1728231541870,3.26837,2447.7,2447.5,0.8312]
[1728231542309,2.30938711,2447.9,2447.5,0.8312]
[1728231542617,4.82670711,2447.9,2447.5,0.8312]
[1728231544986,3.26803,2448.0,2447.5,0.8312]
[1728231545212,3.26824,2447.8,2447.5,0.8312]
[1728231549893,3.2684,2447.7,2447.5,0.8312]
[1728231550732,3.2684,2447.7,2447.3,0.7669]
[1728231551111,3.26838,2447.7,2447.3,0.7669]
[1728231551724,3.26858,2447.6,2447.3,0.7669]
[1728231551907,3.26877,2447.4,2447.0,0.7669]
[1728231552117,4.82733711,2447.5,2447.0,3.64961213]
[1728231552315,3.26884,2447.4,2447.0,0.7669]
[1728231552501,3.26892,2447.3,2447.0,0.7669]
[1728231553241,3.2691,2447.2,2447.0,0.7669]
[1728231553442,3.26892,2447.3,2447.0,0.7669]
[1728231556121,5.64349711,2447.5,2447.0,0.7669]
[1728231556396,3.26878,2447.4,2447.0,0.7669]
[1728231557123,8.09600711,2447.5,2447.0,4.766782]
[1728231557354,3.26871,2447.5,2447.0,4.766782]
[1728231558067,3.26871,2447.5,2447.1,0.779]
[1728231558938,6.53741,2447.5,2447.1,0.779]
[1728231559634,3.26879,2447.4,2447.1,0.779]
[1728231559827,3.26912,2447.2,2446.9,0.779]
[1728231560132,3.26918,2447.1,2446.9,0.779]
[1728231560957,3.26906,2447.2,2446.9,0.779]
[1728231562660,4.82756711,2447.3,2446.9,0.779]
[1728231563029,3.26913,2447.2,2446.9,0.779]
[1728231563230,4.82756711,2447.3,2446.5,7.39]
[1728231563231,3.26919,2447.1,2446.5,7.39]
[1728231563538,5.59597711,2447.1,2446.6,0.8264]
[1728231563906,4.82809711,2446.9,2446.2,3.27028]
[1728231564163,4.82809711,2446.9,2446.3,4.09657]
[1728231564353,3.26959,2446.8,2446.3,4.09657]
[1728231564554,3.26959,2446.8,2446.3,0.8264]
[1728231564729,5.59653711,2446.7,2446.3,0.8264]
[1728231565034,8.86635711,2446.7,2446.3,0.8264]
[1728231565233,5.59653711,2446.7,2446.3,0.8264]
[1728231565560,8.86632711,2446.7,2446.3,0.8264]
[1728231565761,5.59653711,2446.7,2446.3,0.8264]
[1728231568188,3.26952,2446.9,2446.4,3.2701]
[1728231568402,5.59602711,2447.1,2446.5,0.8264]
[1728231568691,3.26944,2446.9,2446.5,0.8264]
[1728231568842,5.59602711,2447.1,2446.5,0.8264]
[1728231569042,3.26924,2447.1,2446.5,3.679532]
[1728231569247,3.26924,2447.1,2446.6,0.8264]
[1728231569476,6.53853,2447.1,2446.6,0.8264]
[1728231569671,7.45,2447.2,2446.6,0.8264]
[1728231569879,7.45,2447.2,2446.7,0.8264]
[1728231570053,3.26919,2447.1,2446.7,0.8264]
[1728231570245,4.82777711,2447.1,2446.7,0.8264]
[1728231570445,8.09706711,2447.1,2446.7,0.8264]
[1728231570645,4.82777711,2447.1,2446.7,0.8264]
[1728231572409,10.71905,2447.2,2446.7,1.2769882]
[1728231573187,3.26918,2447.1,2446.7,1.2769882]
[1728231573592,3.26934,2447.0,2446.7,1.2769882]
[1728231573749,3.26918,2447.1,2446.7,1.2769882]
[1728231573954,4.03756,2447.0,2446.5,1.236042]
[1728231574980,4.03756,2447.0,2446.5,4.506002]
[1728231575212,4.82776711,2447.1,2446.5,1.236042]
[1728231575357,3.26918,2447.1,2446.6,3.26982]
[1728231575558,3.26918,2447.1,2446.6,4.0474082]
[1728231575802,3.26934,2447.0,2446.6,0.7775882]
[1728231575999,3.26918,2447.1,2446.7,0.8264]
[1728231577196,3.26918,2447.1,2446.7,4.09611]
[1728231577567,3.26918,2447.1,2446.7,0.8264]
[1728231577905,3.26918,2447.1,2446.7,1.64075182]
[1728231578393,3.26899,2447.3,2446.7,1.64075182]
[1728231578996,3.26911,2447.2,2446.7,1.64075182]
[1728231579162,4.82769711,2447.2,2446.7,1.64075182]
[1728231579358,3.26918,2447.1,2446.7,1.64075182]
[1728231579559,3.26918,2447.1,2446.7,0.8264]
[1728231579560,3.26942,2447.0,2446.7,0.8264]
[1728231581421,3.26945,2446.9,2446.7,0.8264]
[1728231584718,3.26945,2446.9,2446.5,0.7832]
[1728231588423,3.26945,2446.9,2446.5,1.515526]
[1728231595016,7.30668,2447.1,2446.5,4.785486]
[1728231595324,3.26934,2447.0,2446.5,4.785486]
[1728231596402,0.7682,2447.1,2446.6,3.26977]
[1728231596609,3.26898,2447.3,2446.8,0.7832]
[1728231597627,3.26904,2447.2,2446.8,0.7832]
[1728231599346,3.26919,2447.1,2446.8,0.7832]
[1728231600541,3.26853,2447.6,2446.5,0.7832]
[1728231600542,3.26959,2446.8,2446.5,0.7832]
[1728231600772,3.26953,2446.9,2446.5,0.7832]
[1728231601040,3.26953,2446.9,2446.5,4.05317]
[1728231601259,3.26953,2446.9,2446.5,4.96479558]
[1728231601395,3.26953,2446.9,2446.5,1.69482558]
[1728231601598,3.26953,2446.9,2446.5,0.7832]
[1728231602641,3.26925,2447.1,2446.5,0.7832]
[1728231602834,3.26925,2447.1,2446.6,4.16847447]
[1728231603336,3.26925,2447.1,2446.6,4.08673]
[1728231606133,3.26932,2447.0,2446.6,0.817]
[1728231606544,3.26925,2447.1,2446.6,0.817]
[1728231606746,1.55858711,2447.2,2446.6,0.817]
[1728231607037,3.2696,2446.8,2446.6,0.817]
[1728231609343,3.26957,2446.9,2446.6,0.817]
[1728231610207,3.26926,2447.1,2446.6,0.817]
[1728231610508,6.53856,2447.1,2446.6,0.817]
[1728231610727,3.26926,2447.1,2446.6,0.817]
[1728231611325,4.09622,2447.2,2446.6,4.08684]
[1728231611531,3.269,2447.3,2446.8,0.817]
[1728231611725,3.269,2447.3,2446.8,4.08651]
[1728231612048,3.269,2447.3,2446.8,0.817]
[1728231612216,3.26918,2447.1,2446.8,0.817]
[1728231612406,4.82758711,2447.3,2446.8,0.817]
[1728231612607,3.26908,2447.2,2446.8,0.817]
[1728231613308,3.269,2447.3,2446.8,4.74572438]
[1728231615312,3.26872,2447.5,2447.0,3.2693]
[1728231615637,0.8271,2447.6,2447.1,3.26916]
[1728231615638,3.2685,2447.6,2447.1,3.26916]
[1728231615935,3.2685,2447.6,2447.1,4.17583513]
[1728231616256,3.2685,2447.6,2447.2,0.817]
[1728231616545,3.2684,2447.7,2447.2,0.817]
[1728231617051,3.26866,2447.5,2447.2,0.817]
[1728231619722,3.26866,2447.5,2446.9,3.26934]
[1728231619926,3.26891,2447.3,2447.0,0.817]
[1728231620531,3.26891,2447.3,2446.8,2.52826127]
[1728231620817,3.26891,2447.3,2446.8,0.817]
[1728231621026,3.26891,2447.3,2446.8,5.79782127]
[1728231621330,3.2692,2447.1,2446.8,0.817]
[1728231622458,3.26898,2447.3,2446.8,0.817]
[1728231622819,3.26872,2447.5,2447.0,0.7695]
[1728231623717,3.26878,2447.4,2447.0,0.7695]
[1728231623932,3.26878,2447.4,2447.0,1.173398]
[1728231625450,3.26872,2447.5,2447.0,1.173398]
[1728231626062,6.53748,2447.5,2447.0,1.173398]
[1728231626217,3.26879,2447.4,2447.0,1.173398]
[1728231626427,3.26872,2447.5,2447.0,1.173398]
[1728231626627,6.53745,2447.5,2447.0,1.173398]
[1728231626826,3.26872,2447.5,2447.0,1.173398]
[1728231627437,3.26872,2447.5,2447.1,0.4442818]
[1728231627761,3.26886,2447.4,2447.1,0.4442818]
[1728231627925,3.26886,2447.4,2447.0,1.173398]
[1728231628122,3.26871,2447.5,2447.0,1.173398]
[1728231628123,3.26871,2447.5,2447.0,4.442688]
[1728231628439,3.26871,2447.5,2447.1,0.7695]
[1728231628829,6.53744,2447.5,2447.1,0.7695]
[1728231629159,3.26879,2447.4,2447.1,0.7695]
[1728231630627,0.7593,2447.7,2446.8,1.71126127]
[1728231630959,10.71813,2447.9,2446.9,0.7695]
[1728231630960,3.26914,2447.2,2446.9,0.7695]
[1728231631367,3.26924,2447.1,2446.9,0.7695]
[1728231633033,3.2693,2447.0,2446.7,0.7695]
[1728231639255,6.53868,2447.0,2446.7,0.7695]
[1728231639438,3.26957,2446.8,2446.5,1.71126127]
[1728231639633,3.26957,2446.8,2446.4,1.71126127]
[1728231639851,3.26957,2446.8,2446.4,0.78937108]
[1728231640151,3.26997,2446.5,2446.3,1.71126127]
[1728231640471,3.27011,2446.4,2446.0,2.48076127]
[1728231640834,3.27011,2446.4,2446.0,0.7695]
[1728231641035,4.02927,2446.5,2446.0,4.82954208]
[1728231641235,7.29936,2446.5,2446.0,4.82954208]
[1728231641479,4.02927,2446.5,2446.0,3.27018335]
[1728231642142,4.02927,2446.5,2446.0,6.54078335]
[1728231642579,4.02927,2446.5,2446.0,3.27018335]
[1728231642791,4.02927,2446.5,2446.0,1.55892208]
[1728231643386,3.2704,2446.2,2445.8,2.47416127]
[1728231644050,3.27024,2446.3,2445.9,1.71126127]
[1728231644564,6.54044,2446.4,2445.9,1.71126127]
[1728231644775,3.27022,2446.4,2445.8,2.47416127]
[1728231644987,0.8026,2446.1,2445.8,0.7629]
[1728231645149,0.8026,2446.1,2445.8,0.78872205]
[1728231645351,3.27071,2446.0,2445.6,2.47416127]
[1728231645789,3.27071,2446.0,2445.6,0.7629]
[1728231646215,0.8026,2446.1,2445.6,0.7629]
[1728231646351,4.07321,2446.1,2445.6,0.7629]
[1728231647462,7.34379,2446.1,2445.6,0.7629]
[1728231647681,4.07318,2446.1,2445.6,0.7629]
[1728231647882,4.07318,2446.1,2445.7,0.57453913]
[1728231648252,7.34378,2446.1,2445.7,0.57453913]
[1728231648461,4.07318,2446.1,2445.7,0.57453913]
[1728231651895,7.34377,2446.1,2445.7,0.57453913]
[1728231652104,7.34377,2446.1,2445.6,0.7629]
[1728231652105,3.2708,2445.9,2445.6,0.7629]
[1728231652959,0.8026,2446.1,2445.6,0.7629]
[1728231653200,3.27089,2445.9,2445.6,0.7629]
[1728231653407,3.27089,2445.9,2445.4,0.7629]
[1728231653696,3.27089,2445.9,2445.4,1.166339]
[1728231653896,3.27075,2446.0,2445.4,1.166339]
[1728231654098,3.27078,2445.9,2445.4,4.437779]
[1728231656206,3.27078,2445.9,2445.4,1.166339]
[1728231657085,3.27092,2445.8,2445.4,1.166339]
[1728231659394,6.54191,2445.8,2445.4,1.166339]
[1728231660094,3.27092,2445.8,2445.4,1.166339]
[1728231660325,3.27092,2445.8,2445.4,0.7629]
[1728231660543,7.45,2446.3,2444.9,4.98331127]
[1728231660544,3.27132,2445.5,2445.0,4.03487]
[1728231660834,3.27127,2445.6,2445.0,1.4747922]
[1728231661138,6.54254,2445.6,2445.0,4.7467022]
[1728231661636,3.27127,2445.6,2445.1,0.80186922]
[1728231661794,3.27127,2445.6,2445.1,4.07369922]
[1728231661996,6.54257,2445.6,2445.1,4.07369922]
[1728231662198,3.27127,2445.6,2445.1,4.07369922]
[1728231662596,3.27127,2445.6,2445.1,3.27183]
[1728231663736,4.07365,2445.7,2445.2,4.0721]
[1728231664221,4.07365,2445.7,2445.2,0.8004]
[1728231664737,0.8026,2445.7,2445.2,0.8004]
[1728231664935,3.27125,2445.6,2445.2,0.8004]
[1728231665139,3.27099,2445.8,2445.2,0.8004]
[1728231665354,3.27099,2445.8,2445.4,0.8004]
[1728231665850,4.02504,2446.0,2445.4,1.20759]
[1728231666019,3.27078,2445.9,2445.4,4.4789]
[1728231666221,4.02504,2446.0,2445.4,1.20759]
[1728231666439,3.27092,2445.8,2445.4,1.20759]
[1728231666763,3.27131,2445.5,2445.2,0.8004]
[1728231667120,3.27119,2445.6,2445.2,0.8004]
[1728231668859,3.27109,2445.7,2445.2,0.8004]
[1728231668860,3.27134,2445.5,2445.2,0.8004]
[1728231669349,3.2712,2445.6,2445.2,0.8004]
[1728231669557,3.2712,2445.6,2445.2,1.207622]
[1728231671346,3.27132,2445.5,2445.2,1.207622]
[1728231671519,3.27132,2445.5,2445.2,0.8004]
[1728231671850,3.27109,2445.7,2445.2,0.8004]
[1728231672152,3.27124,2445.6,2445.2,0.8004]
[1728231673428,4.02563,2445.5,2445.2,0.8004]
[1728231674427,3.27158,2445.3,2445.2,0.8004]
[1728231675559,3.27145,2445.4,2445.2,0.8004]
[1728231677436,3.27145,2445.4,2444.9,0.8004]
[1728231677437,3.27158,2445.3,2444.9,0.8004]
[1728231678350,3.2718,2445.2,2444.9,0.8004]
[1728231679440,3.2715,2445.4,2445.0,0.8004]
[1728231680981,3.27158,2445.3,2445.0,0.8004]
[1728231682185,3.27021086,2445.3,2445.0,0.8004]
[1728231682795,3.27122,2445.6,2445.2,0.7524]
[1728231683293,3.27122,2445.6,2445.2,1.154816]
[1728231684129,3.27099,2445.8,2445.3,0.7524]
[1728231684304,3.27107,2445.7,2445.3,0.7524]
[1728231685806,3.27099,2445.8,2445.3,0.7524]
[1728231686112,3.27099,2445.8,2445.3,3.27151]
[1728231686265,3.27099,2445.8,2445.4,1.4469616]
[1728231687664,10.72072,2446.0,2445.5,0.7524]
[1728231687665,3.27072,2446.0,2445.5,0.7524]
[1728231687869,3.27082,2445.9,2445.5,0.7524]
[1728231689972,3.27072,2446.0,2445.5,0.7524]
[1728231690907,6.54144,2446.0,2445.5,0.7524]
[1728231691122,3.27072,2446.0,2445.7,0.7524]
[1728231693599,6.54144,2446.0,2445.7,0.7524]
[1728231693905,3.27078,2445.9,2445.7,0.7524]
[1728231694475,3.27072,2446.0,2445.7,0.7524]
[1728231694679,4.06602,2446.0,2445.5,2.46685989]
[1728231694915,3.27081,2445.9,2445.5,2.46685989]
[1728231695102,3.27091,2445.8,2445.5,2.46685989]
[1728231695430,4.06602,2446.0,2445.5,2.46685989]
[1728231695431,7.33675,2446.0,2445.5,2.46685989]
[1728231696297,3.27072,2446.0,2445.6,0.7524]
[1728231697389,3.27046,2446.2,2445.6,0.7524]
[1728231697590,3.27052,2446.1,2445.6,0.7524]
[1728231698250,3.27065,2446.0,2445.6,0.7524]
[1728231698412,3.27065,2446.0,2445.6,1.80857211]
[1728231699635,3.27046,2446.2,2445.6,1.80857211]
[1728231699924,3.27056,2446.1,2445.6,1.80857211]
[1728231700126,3.27046,2446.2,2445.7,0.7524]
[1728231700629,3.27058,2446.1,2445.7,0.7524]
[1728231700804,3.27058,2446.1,2445.7,1.4318192]
[1728231703741,3.27046,2446.2,2445.7,1.4318192]
[1728231704233,3.27046,2446.2,2445.7,4.7028492]
[1728231704838,6.54093,2446.2,2445.7,1.4318192]
[1728231705191,9.38914537,2446.6,2446.2,0.8249]
[1728231705439,3.26978,2446.7,2446.2,0.8249]
[1728231705738,4.09257,2446.1,2445.7,0.6794192]
[1728231706031,3.2704,2446.2,2445.8,0.8249]
[1728231706390,3.27009,2446.5,2445.9,0.8249]
[1728231706590,3.27011,2446.4,2445.9,0.8249]
[1728231707038,14.81186,2446.6,2446.0,3.27062]
[1728231707340,3.26998,2446.5,2446.0,1.479041]
[1728231708398,3.27013,2446.4,2446.0,1.479041]
[1728231709302,3.02013,2446.4,2446.0,1.479041]
[1728231709501,3.26992,2446.6,2446.1,0.8249]
[1728231710403,6.53984,2446.6,2446.1,0.8249]
[1728231710603,6.53984,2446.6,2446.2,0.41771973]
[1728231712234,3.26992,2446.6,2446.2,0.41771973]
[1728231712419,3.27011,2446.4,2446.1,0.8249]
[1728231713638,6.53988,2446.6,2446.1,0.8249]
[1728231714000,3.26999,2446.5,2446.1,0.8249]
[1728231714807,3.27064,2446.0,2445.9,0.8249]
[1728231715146,3.27085,2445.9,2445.6,0.8249]
[1728231715943,6.54174,2445.9,2445.6,0.8249]
[1728231716237,3.27091,2445.8,2445.6,0.8249]
[1728231716437,6.5419,2445.8,2445.6,0.8249]
[1728231716608,6.54189,2445.8,2445.3,2.53935989]
[1728231716805,6.54189,2445.8,2445.4,0.58109799]
[1728231717133,3.27091,2445.8,2445.4,0.58109799]
[1728231719039,6.54148,2446.0,2445.5,0.8249]
[1728231719839,3.27072,2446.0,2445.5,0.8249]
[1728231720043,3.27081,2445.9,2445.5,0.8249]
[1728231721711,3.27081,2445.9,2445.5,1.46410179]
[1728231722017,3.27072,2446.0,2445.5,1.46410179]
[1728231722213,3.27092,2445.8,2445.5,0.8249]
[1728231722924,3.27144,2445.4,2445.3,1.71445989]
[1728231723152,3.27166,2445.3,2445.0,1.71445989]
[1728231723311,3.27184,2445.1,2444.9,2.54115989]
[1728231723711,3.27198,2445.0,2444.8,1.71445989]
[1728231724237,3.27184,2445.1,2444.8,1.71445989]
[1728231724420,3.27184,2445.1,2444.7,2.54115989]
[1728231724619,3.27166,2445.3,2444.8,1.71445989]
[1728231724806,3.27173,2445.2,2444.8,1.71445989]
[1728231725239,3.27166,2445.3,2444.8,1.71445989]
[1728231725833,6.54337,2445.3,2444.8,1.71445989]
[1728231726246,3.27138,2445.5,2444.9,5.81324989]
[1728231726409,3.27138,2445.5,2444.9,6.81156371]
[1728231726924,6.54277,2445.5,2444.9,6.81156371]
[1728231727316,3.27146,2445.4,2444.9,6.81156371]
[1728231727712,3.27138,2445.5,2444.9,6.81156371]
[1728231728055,3.27146,2445.4,2445.0,1.22239088]
[1728231729046,3.27158,2445.3,2444.9,2.54115989]
[1728231729446,3.27158,2445.3,2444.9,0.8267]
[1728231730126,6.54329,2445.3,2444.9,0.8267]
[1728231730514,3.27158,2445.3,2444.9,2.54115989]
[1728231730717,3.27158,2445.3,2444.9,0.8267]
[1728231731051,3.27158,2445.3,2444.9,2.54115989]
[1728231733518,3.27158,2445.3,2444.9,0.8267]
[1728231733852,3.27158,2445.3,2444.9,2.54115989]
[1728231734056,3.27158,2445.3,2444.9,3.38341475]
[1728231734221,3.27158,2445.3,2444.9,1.66895486]
[1728231735438,3.27158,2445.3,2444.9,0.8267]
[1728231735755,3.27177,2445.2,2444.9,0.8267]
[1728231736416,3.27177,2445.2,2444.8,1.71445989]
[1728231736417,3.27185,2445.1,2444.8,1.71445989]
[1728231737155,3.27185,2445.1,2444.7,2.96989838]
[1728231737935,3.27225,2444.8,2444.7,1.71445989]
[1728231738135,3.27225,2444.8,2444.5,2.14108019]
[1728231738136,3.27225,2444.8,2444.5,1.71445989]
[1728231738336,3.27225,2444.8,2444.4,2.50175989]
[1728231738547,6.54458,2444.8,2444.4,2.50175989]
[1728231738963,3.2724,2444.7,2444.4,2.50175989]
[1728231739147,3.2724,2444.7,2444.4,0.7873]
[1728231741031,3.27225,2444.8,2444.4,0.7873]
[1728231742129,6.54462,2444.8,2444.4,0.7873]
[1728231742326,3.27225,2444.8,2444.4,0.7873]
[1728231742530,6.54411,2445.0,2444.4,4.63752999]
[1728231742945,10.72177,2445.2,2444.6,4.04814]
[1728231743128,3.27185,2445.1,2444.6,0.7757]
[1728231743663,3.2722,2444.9,2444.6,0.7757]
[1728231743869,3.27229,2444.8,2444.6,0.7757]
[1728231744275,3.2722,2444.9,2444.6,0.7757]
[1728231745185,6.54441,2444.9,2444.6,0.7757]
[1728231745641,3.27234,2444.8,2444.4,0.7757]
[1728231746626,3.2722,2444.9,2444.4,0.7757]
[1728231747049,3.27227,2444.8,2444.4,0.7757]
[1728231747255,3.2722,2444.9,2444.4,0.7757]
[1728231747454,3.27229,2444.8,2444.4,0.7757]
[1728231747643,3.2722,2444.9,2444.4,0.7757]
[1728231748572,3.2722,2444.9,2444.4,4.04848]
[1728231748869,3.2722,2444.9,2444.4,1.67927499]
[1728231749044,6.54444,2444.9,2444.4,1.67927499]
[1728231749246,3.2722,2444.9,2444.4,0.7757]
[1728231749845,3.2722,2444.9,2444.4,4.04847]
[1728231750473,3.27226,2444.8,2444.4,0.7757]
[1728231750967,3.2722,2444.9,2444.4,0.7757]
[1728231751144,3.2722,2444.9,2444.4,1.35199699]
[1728231752066,3.2722,2444.9,2444.4,4.62477699]
[1728231752445,3.27225,2444.8,2444.4,1.35199699]
[1728231753053,3.2722,2444.9,2444.4,1.35199699]
[1728231753257,3.2722,2444.9,2444.4,4.62476699]
[1728231755473,3.2722,2444.9,2444.4,1.35199699]
[1728231755637,3.2722,2444.9,2444.4,4.62475699]
[1728231755842,3.27234,2444.8,2444.4,0.7757]
[1728231756594,3.27272,2444.5,2444.2,0.8133]
[1728231756947,4.08112,2444.6,2444.2,0.8133]
[1728231758042,4.08112,2444.6,2443.9,10.66337]
[1728231758248,6.54575,2444.4,2443.9,10.66337]
[1728231758487,3.27286,2444.4,2443.9,12.32197511]
[1728231758785,3.27293,2444.3,2443.9,7.39]